Cogmind - Beta 14 @@@ ROGUE MODE // 2024.09.14 @ 11:31:40 Player: youngster Result: Destroyed by 2S-A1A(R) with Subdweller Beam Cannon Performance ------------- Evolutions (0) 0 Regions Visited (3) 600 Robots Destroyed (46) 230 Value Destroyed (1052) 1052 Prototype IDs (2) 40 Alien Tech Used (0) 0 Bonus (45) 45 TOTAL SCORE: 1967 Bonus ------- High Alert Combat Kills 8 Follower Combat Kills 37 Cogmind --------- Core Integrity 0/250 Matter 276/300 Energy 124/125 System Corruption 0% Temperature Cool (18) Movement Treading (225) Ox1 Location -10/Subcaves Parts ------- > --- POWER (1) -------- Light Ion Engine > --- PROPULSION (2) --- Advanced Treads > --- UTILITY (2) ------ Large Storage Unit Makeshift Light Armor Plating > --- WEAPON (2) ------- Heavy EM Pulse Gun Battle Rifle > --- INVENTORY (15) --- Subdweller Power Source Compact Wheel High-capacity Matter Pod (200) Advanced Visual Processing Unit Tractor Beam Tractor Beam Battle Rifle Grenade Launcher Rocket Launcher Datajack Multitool Makeshift Sword Peak State ------------ > --- POWER ------------ Light Ion Engine > --- PROPULSION ------- Light Treads Advanced Treads > --- UTILITY ---------- Large Storage Unit Makeshift Light Armor Plating > --- WEAPON ----------- Heavy EM Pulse Gun Makeshift Sword > --- INVENTORY -------- Subdweller Power Source Light Treads Compact Wheel High-capacity Matter Pod Advanced Visual Processing Unit Tractor Beam Tractor Beam Heavy EM Pulse Gun Heavy EM Pulse Gun Battle Rifle Battle Rifle Grenade Launcher Rocket Launcher Datajack Multitool [Rating: 18] Favorites ----------- Power Ion Engine Engine Ion Engine Propulsion Light Treads Treads Light Treads Utility Large Storage Unit Device Seismic Detector Storage Large Storage Unit Protection Makeshift Light Armor Plating Weapon Heavy EM Pulse Gun Energy Gun Heavy EM Pulse Gun Energy Cannon Beam Cannon Ballistic Gun Light Assault Rifle Launcher Rocket Launcher Impact Weapon Heavy Hammer Slashing Weapon Makeshift Sword Build | -11 -10 -10 -10 ------- Run | Yrd Mat Min Sub Slots Evolved . | . . . . Power . | . . . . Propulsion . | . . . . Utility . | . . . . Weapon . | . . . . Parts Attached 55 | 7 18 12 18 Power 2 | 1 . . 1 Engine 2 | 1 . . 1 Core . | . . . . Reactor . | . . . . Propulsion 5 | 2 1 1 1 Treads 5 | 2 1 1 1 Leg . | . . . . Wheel . | . . . . Hover . | . . . . Flight . | . . . . Utility 17 | 2 8 4 3 Device 14 | 1 7 4 2 Storage 2 | 1 1 . . Processor . | . . . . Hackware . | . . . . Protection 1 | . . . 1 Artifact . | . . . . Weapon 31 | 2 9 7 13 Energy Gun 14 | 1 5 2 6 Energy Cannon 1 | . 1 . . Ballistic Gun 4 | 1 . . 3 Ballistic Cannon . | . . . . Launcher 3 | . 1 2 . Special Weapon . | . . . . Impact Weapon 6 | . 2 3 1 Slashing Weapon 3 | . . . 3 Piercing Weapon . | . . . . Special Melee Weapon . | . . . . Unidentified Prototypes . | . . . . Parts Lost 8 | . . 1 7 Power 1 | . . . 1 Propulsion 2 | . . . 2 Utility 2 | . . 1 1 Weapon 3 | . . . 3 Highest Loss Streak 3 | . . 1 3 To Critical Strikes . | . . . . Average Slot Usage (%) 97 | . 99 90 99 Engine 13 | . 14 14 13 Treads 27 | . 27 28 27 Device 8 | . 14 5 6 Storage 14 | . 14 14 14 Protection 3 | . . . 7 Energy Gun 19 | . 21 15 19 Ballistic Gun 1 | . . . 1 Launcher 2 | . . 9 . Impact Weapon 4 | . 4 3 3 Slashing Weapon 1 | . . . 2 Peak Build Rating 18 | 7 12 13 18 Average Rating 12 | 6 10 11 14 On Entrance 7 | . 7 11 13 Naked Turns . | . . . . Heaviest Build 33 | 14 32 33 33 Greatest Support 42 | 40 40 42 42 Greatest Overweight (x) 1 | 1 . . . Average Overweight (x) . | . . . . Largest Inventory Capacity 15 | 8 15 15 15 Average Capacity 13 | 7 12 15 15 Most Carried 15 | 4 12 15 15 Average Carried 11 | 3 8 13 14 Final Capacity 15 | 8 15 15 15 Final Carried 15 | 4 12 15 12 Class Distribution -------------------- 100% | Mutant Dominant Class ---------------- Mutant | -10/Materials Mutant | -10/Mines Mutant | -10/Subcaves Resources | -11 -10 -10 -10 ----------- Run | Yrd Mat Min Sub Matter Collected 994 | 284 367 213 130 Remotely 20 | . . 10 10 Salvage Created 1390 | 178 630 161 421 Parts 91 | 16 29 20 26 Haulers Intercepted 2 | . 2 . . Recyclers Shooed 1 | 1 . . . Parts Field Recycled . | . . . . Retrieved Matter . | . . . . Parts Self-Destructed 2 | . . . 2 Prevented . | . . . . Kills | -11 -10 -10 -10 ------- Run | Yrd Mat Min Sub Combat Hostiles Destroyed 31 | . 12 12 7 Melee 4 | . 3 . 1 Guns 10 | . 4 2 4 AOE 12 | . 3 9 . Classes Destroyed 12 | 2 7 . 3 Worker 1 | . 1 . . Builder 1 | . 1 . . Tunneler 6 | 5 . 1 . Hauler 2 | . 2 . . Recycler 1 | 1 . . . Operator 1 | . 1 . . Watcher 3 | . 3 . . Swarmer 12 | . 3 9 . Grunt 12 | . 9 3 . Artisan 1 | . . . 1 Cobbler 1 | . . . 1 Subdweller 7 | . . . 7 Best Kill Streak 3 | 2 3 3 1 Combat Bots Only 3 | . 3 3 1 Max Kills in Single Turn 3 | 1 3 3 1 Gunslinging . | . . . . Exploded 3 | . 3 2 . Melee 1 | . 1 . 1 Uniques/NPCs Destroyed . | . . . . Combat | -11 -10 -10 -10 -------- Run | Yrd Mat Min Sub Hostile Shots Fired 101 | . 36 16 49 Missed 33 | . 17 6 10 Damage Taken 1302 | 35 225 139 903 Core 255 | 35 12 . 208 Absorbed by Shields . | . . . . Regen/Repaired (Parts) 50 | . 50 . . Core Remaining (%) 86 | 86 . . . Volleys Fired 90 | 14 26 12 38 Largest 2 | 2 2 2 2 Hottest 90 | 60 90 90 90 Shots Fired 162 | 28 50 15 69 Gun 153 | 28 50 6 69 Cannon . | . . . . Launcher 9 | . . 9 . Special . | . . . . Kinetic 17 | 14 . . 3 Thermal . | . . . . Explosive 9 | . . 9 . Electromagnetic 136 | 14 50 6 66 Robot Hit Streak 8 | 5 8 1 7 Robot Miss Streak 3 | 3 3 2 2 Penetration Max . | . . . . Secondary Targets 1 | . 1 . . Max Gunslinging Chain 1 | . 1 . . Shots Hit Robots 125 | 18 45 3 59 Core Hits 59 | 9 20 16 14 Critical Kills . | . . . . Critical Parts Destroyed 4 | . 4 . . Critical Strikes 10 | . 5 . 5 Destroy 1 | . . . 1 Corrupt 5 | . 1 . 4 Smash 4 | . 4 . . Melee Attacks 66 | . 25 3 38 Impact 45 | . 25 3 17 Slashing 21 | . . . 21 Piercing . | . . . . Sneak Attacks 3 | . 1 . 2 Combat Hostiles . | . . . . Follow-up Attacks . | . . . . Damage Inflicted 3712 | 246 1648 737 1081 Guns 1288 | 193 415 29 651 Cannons . | . . . . Explosions 1081 | 53 339 649 40 Melee 1343 | . 894 59 390 Ramming . | . . . . Kinetic 109 | 61 . . 48 Thermal 460 | 53 339 28 40 Explosive 621 | . . 621 . Electromagnetic 1179 | 132 415 29 603 Impact 953 | . 894 59 . Slashing 390 | . . . 390 Piercing . | . . . . Highest Corruption . | . . . . Average Corruption . | . . . . Corruption Purged . | . . . . Corruption Blocked . | . . . . Overload Shots . | . . . . Overflow Damage 564 | . 444 83 37 Projectiles . | . . . . Explosions 249 | . 168 44 37 Melee 315 | . 276 39 . Knockbacks 4 | . 4 . . Impact 4 | . 4 . . Kinetic . | . . . . Secondary . | . . . . Self-Inflicted Damage 138 | 35 . 40 63 Shots 3 | 1 . 1 1 Rammed 2 | . 1 1 . Targets Rammed 2 | . 1 1 . Kicked . | . . . . Crushed . | . . . . Highest Temperature 128 | 52 128 30 9 Average Temperature 31 | 20 40 16 4 Received Heat Transfer 279 | . 126 30 123 Siege Activations . | . . . . Robots Corrupted 5 | . 2 1 2 Combat Hostiles 5 | . 2 1 2 Parts Fried 9 | . 5 . 4 Impact Corruptions 10 | . 9 1 . Robots Melted . | . . . . Combat Hostiles . | . . . . Parts Melted . | . . . . Heat Transferred 500 | 100 300 50 50 Parts Sabotaged . | . . . . Parts Stolen . | . . . . Parts Stripped . | . . . . Power Chain Reactions 6 | 2 3 . 1 Alert | -11 -10 -10 -10 ------- Run | Yrd Mat Min Sub Peak Influence 483 | 30 279 483 . Initial 88 | . 19 88 . Average 198 | 14 153 304 . Maximum Alert Level 2 | . 1 2 . Low Security (%) 53 | 100 65 25 . Level 1 39 | . 34 55 . Level 2 6 | . . 18 . Level 3 . | . . . . Level 4 . | . . . . Level 5 . | . . . . High Security . | . . . . Max Security . | . . . . Squads Dispatched 3 | . 2 1 . Investigation 2 | . 1 1 . Extermination . | . . . . Reinforcement 1 | . 1 . . Assault . | . . . . Garrison . | . . . . Intercept . | . . . . Searches Triggered . | . . . . Construction Impeded . | . . . . Haulers Reinforced . | . . . . Active Scanning Responses . | . . . . Cargo Convoy Interrupts . | . . . . Stealth | -11 -10 -10 -10 --------- Run | Yrd Mat Min Sub Distress Signals 2 | . 1 1 . Communications Jammed . | . . . . Distress Signals . | . . . . Times Spotted 42 | . 22 9 11 Peak Tracking Total 3 | . 3 3 2 Tactical Retreats 3 | . 2 1 . Traps | -11 -10 -10 -10 ------- Run | Yrd Mat Min Sub Traps Triggered . | . . . . Indirectly . | . . . . Trap Hack Attempts . | . . . . Triggered . | . . . . Disarmed . | . . . . Reprogrammed . | . . . . Reused . | . . . . Traps Extracted . | . . . . Installed . | . . . . Triggered . | . . . . Machines | -11 -10 -10 -10 ---------- Run | Yrd Mat Min Sub Machines Disabled 7 | . 3 4 . Max in Single Turn 2 | . 2 2 . Machines Repaired . | . . . . Machines Dismantled . | . . . . Machines Sabotaged . | . . . . Overloaded Fab Kills . | . . . . Hacking | -11 -10 -10 -10 --------- Run | Yrd Mat Min Sub Machines Accessed 9 | . 8 1 . Terminals 7 | . 7 . . Fabricators . | . . . . Repair Stations 1 | . 1 . . Recycling Units . | . . . . Scanalyzers . | . . . . Garrison Access . | . . . . Total Hacks 30 | . 29 1 . Successful 14 | . 13 1 . Failed 16 | . 16 . . Catastrophic 3 | . 3 . . Database Lockouts . | . . . . Manual 26 | . 26 . . Terminals 27 | . 27 . . Fabricators . | . . . . Repair Stations 2 | . 2 . . Recycling Units . | . . . . Scanalyzers . | . . . . Garrison Access . | . . . . Terminal Hacks 5 | . 4 1 . Part Schematic 1 | . 1 . . Robot Schematic 1 | . 1 . . Robot Analysis 1 | . 1 . . Prototype ID Bank 1 | . 1 . . Open Door 1 | . . 1 . Fabricator Hacks . | . . . . Repair Station Hacks 2 | . 2 . . Scan Component 1 | . 1 . . Repair 1 | . 1 . . Recycling Unit Hacks . | . . . . Scanalyzer . | . . . . Garrison Access Hacks . | . . . . Unauthorized Hacks 7 | . 7 . . Terminals 7 | . 7 . . Botnet 2 | . 2 . . Skim 5 | . 5 . . Fabricators . | . . . . Repair Stations . | . . . . Recycling Units . | . . . . Scanalyzers . | . . . . Garrison Access . | . . . . Data Cores Recovered 1 | . 1 . . Used 1 | . 1 . . Hacking Detections 7 | . 7 . . Full Trace Events . | . . . . Feedback Events . | . . . . Feedback Blocked . | . . . . Robot Schematics Acquired 1 | . 1 . . Robots Built . | . . . . Authchips . | . . . . Time . | . . . . Total Robot Build Rating . | . . . . Part Schematics Acquired 1 | . 1 . . Parts Built . | . . . . Authchips . | . . . . Time . | . . . . Total Part Build Rating . | . . . . Parts Repaired 1 | . 1 . . Time 26 | . 26 . . Parts Recycled . | . . . . Recycled Matter . | . . . . Retrieved Matter . | . . . . Retrieved Components . | . . . . Parts Scanalyzed . | . . . . Part Schematics Acquired . | . . . . Parts Damaged . | . . . . Bothacking | -11 -10 -10 -10 ------------ Run | Yrd Mat Min Sub Used RIF Installer . | . . . . Robots Hacked . | . . . . Non-combat . | . . . . Combat . | . . . . Robot Hacks Applied . | . . . . Relay Couplers Released . | . . . . Fabnet Peak Effective % . | . . . . Robots Rewired . | . . . . Allies Hacked . | . . . . Hacks Repelled . | . . . . Allies | -11 -10 -10 -10 -------- Run | Yrd Mat Min Sub Total Allies 3 | . . 3 . Largest Group 3 | . . 3 3 Highest-Rated Group 40 | . . 40 40 Highest-Rated Ally 16 | . . 16 16 Total Orders . | . . . . Ally Attacks 8 | . . . 8 Total Damage 65 | . . . 65 Kills 2 | . . . 2 Allies Corrupted . | . . . . Allies Melted . | . . . . Intel | -11 -10 -10 -10 ------- Run | Yrd Mat Min Sub Robot Analysis Total 1 | . 1 . . Derelict Logs Recovered 2 | . . 2 . Drone Launches . | . . . . Drone Recoveries . | . . . . Exploration | -11 -10 -10 -10 ------------- Run | Yrd Mat Min Sub Turns Passed 4160 | 175 1460 921 1604 Spaces Moved 2267 | 78 751 553 885 Core 3 | 3 . . . Treads 2264 | 75 751 553 885 Legs . | . . . . Wheels . | . . . . Hover . | . . . . Flight . | . . . . Fastest Speed 50 | 50 160 152 152 Average Speed 155 | 156 160 155 152 Slowest Speed 160 | 160 160 160 152 Overloaded Moves . | . . . . Propulsion Burnouts . | . . . . Robots Hopped . | . . . . Cave-ins Triggered . | . . . . Exploration Rate (%) 60 | 5 94 99 45 Regions Visited 3 Branch Regions 2 Pre-discovered Areas 3 | . 1 1 1 Known Exits Taken 2 | . 1 1 . Unknown Exits Taken 1 | 1 . . . Scrap Searched 9 | . . 2 7 Spaces Dug 46 | . 2 26 18 Terrain Destroyed 140 | 4 34 76 26 Melee 21 | . 2 1 18 Projectile . | . . . . AOE 119 | 4 32 75 8 Terrain Rammed . | . . . . Walls Destroyed . | . . . . Machines Disabled . | . . . . Actions | -11 -10 -10 -10 --------- Run | Yrd Mat Min Sub Total 2627 | 102 911 591 1023 Wait 112 | . 78 4 30 Move 2264 | 77 750 552 885 Hop . | . . . . Pick Up 24 | 4 8 4 8 Fast Attach 11 | 7 2 1 1 Attach 6 | . . 1 5 Detach 2 | . 1 1 . Swap 38 | . 16 10 12 Drop 12 | . 4 2 6 Fire 90 | 14 26 12 38 Melee 66 | . 25 3 38 Ram . | . . . . Kick . | . . . . Crush 2 | . 1 1 . Escape Stasis . | . . . . Rewire . | . . . . Trap . | . . . . Miscellaneous . | . . . . Route ------- -11/Scrapyard -10/Materials (discovered 4 exits: [*Mat x3] / *Min) -10/Mines (discovered 4 exits: [*Mat x2] / *Exi / *Sub) -10/Subcaves (discovered 2 exits: *Mat x2) History --------- Turn | Location | Event 11 | -11/Scrapyard | Discovered new exit (range 16) 176 | -11/Scrapyard | Entered Materials 318 | -10/Materials | Build established: Mutant 514 | -10/Materials | Discovered new exit (range 3) 743 | -10/Materials | Discovered new exit (range 5) 979 | -10/Materials | Learned 2 Mines zone layouts 1011 | -10/Materials | Discovered new exit (range 16) 1040 | -10/Materials | Loaded intel: 33 non-interactive machine locations 1060 | -10/Materials | Repaired Lgt. Treads 1131 | -10/Materials | Learned location of 2 exits from Subcaves 1162 | -10/Materials | Learned location of 1 exit from Storage 1248 | -10/Materials | Learned 4 Recycling zone layouts 1304 | -10/Materials | Identified exit to Mines 1636 | -10/Materials | Entered Mines 1637 | -10/Mines | Identified exit to Exiles 1637 | -10/Mines | Identified exit to Subcaves 1655 | -10/Mines | Discovered new exit (range 9) 1859 | -10/Mines | Discovered new exit (range 3) 1884 | -10/Mines | Learned location of Zion (-7) 1903 | -10/Mines | Deemed a non-threat by the Exiles lab entrance 1940 | -10/Mines | Received a Rocket Launcher from a helpful Derelict 2051 | -10/Mines | Met a Derelict shopkeep closing up shop 2195 | -10/Mines | Learned 4 Materials zone layouts 2385 | -10/Mines | A weapon hastily lodged in a ceiling crevice suddenly fell to the ground 2451 | -10/Mines | Assisted by bots powering up and referring to "LRC-V3" 2557 | -10/Mines | Entered Subcaves 2557 | -10/Subcaves | Accompanied by 3 allies 2558 | -10/Subcaves | Identified exit to Materials 2791 | -10/Subcaves | Lost 3 allies 2808 | -10/Subcaves | A swath of the cavern ceiling suddenly collapsed 3155 | -10/Subcaves | Met a Zionite searching for "candidates" 3404 | -10/Subcaves | Shifting Twisted Machinery released Mak. Sword 3426 | -10/Subcaves | Shifting Twisted Machinery released Multitool 3890 | -10/Subcaves | Ambushed by Subdweller buried in earth 3897 | -10/Subcaves | Core integrity fell below 50% 3985 | -10/Subcaves | Lost 3 parts (1n2w) 4148 | -10/Subcaves | Core integrity fell below 20% 4161 | -10/Subcaves | Destroyed by 2S-A1A(R) with Subdweller Beam Cannon Last Messages --------------- 03909_ 55 Matter crushed. 03939_ Lgt. Treads destroyed. 03947_ AI-JPC(R) misfires. 03954_ Chain reaction triggered in Sub. Power Source. 03954_ Hvy. EM Pulse Gun destroyed. 03954_ Destroyed Hvy. EM Pulse Gun. 03954_ Hvy. EM Pulse Gun destroyed. 03954_ Destroyed Hvy. EM Pulse Gun. 03955_ AI-JPC(R) system terminally corrupted. 03961_ Acquired 55 matter. 03982_ Searching scrap... 03982_ Found Sub. Power Source. 03982_ Found Mak. Hacking Suite. 03982_ Found 48 Matter. 03992_ UZ-RY6(R): "LEAVESUB!" 04029_ Destroyed Scrap Shield. 04033_ UZ-RY6(R) destroyed. 04153_ 2S-A1A(R) suffers critical hit (Destroy). 04159_ Lgt. Treads destroyed. Map ----- +----------------------------------------------------+ | ?????????## #### #?????????????????????## #? | | ??????????## ##??#####????????????????????## #? | | ???????????###????????????????????????????# ##? | | ?????????????????????????????????????????## #?? | | ??????????????????????????????????????#### ##? | | ??????????????????????????????????????# #? | | ??????????????????????????????????????# #? | | ?????????????????????????????????????## #? | | ?????????????????????????????????????# ##? | | ?????????????????????????????????????## #?? | | ??????????????????????????????????????## ! ##? | | ???????????????????????????????????????###&&% ## | | ????????????????????????????????????????##%!&= # | | ???????????????????????????????????????##[& | | ????????????????????????????#??????????# | | ???####?????????????????????"??????????# | | ???# #?????????????????????&##????????## # | | ???# #######????####??????? #?????????## ## # | | ???# # # #????# #????#### "###??????# ##?# # | | ???##### #????# ##???# # ## #??????## #???## | | ???## # #????# ##??# " " #??????## ####?# | | ???# ### ####?# ##?# ###????# # ### | | ???## #### # #?# ##?# ### #????# ## | | ??## # #?# #### #????# ## ## | | ??# #### ### ##????# ### | | ??# # # @ R ###?#### #?## | | #### #### ## ### #??# | | # " ## ### #??# | | "#"#### #### ##?# | | ####??##### ### ##### | | ##????????### ### #??? | | "##????????# #?# ## #?? | | ""##???????## #?# ## ### #?? | | """#????????# #?## ### ## ##??###?? | | #"#"#???????# ##??###??# ## ##??????? | | "####??????###????????#### ##?????? | | ## ""#????????????????????#### ## ###???? | | ###"##???????????????????????## ### ##??? | | "###"#???????????????????????## ### #??? | | ##?# #???????????????????????# # ## #??? | | ???###???????????????????????# ################??? | | ?????????????????????????????##??????????????????? | | ?????????????????????????????????????????????????? | | ?????????????????????????????????????????????????? | | ?????????????????????????????????????????????????? | | ?????????????????????????????????????????????????? | | ?????????????????????????????????????????????????? | | ?????????????????????????????????????????????????? | | ?????????????????????????????????????????????????? | | ?????????????????????????????????????????????????? | +----------------------------------------------------+ Best States ------------- Heat Dissipation 25 Energy Generation 10 Energy Capacity 250 Matter Stores 300 Matter Capacity 300 Sight Range 16 Terrain Scan Range 16 Terrain Scan Density 10 Armor Coverage 100 Evasion (%) 40 Recoil Reduction 2 Item Schematics ----------------- Cargo Storage Unit | -10/Materials | Hacked Robot Schematics ------------------ M-13 Machinist | -10/Materials | Hacked Fabricated ------------ Nothing Alien Tech Used ----------------- None Achievements -------------- None Challenges ------------ None Game ------ Seed ElectronDamperStatue Manual? 0 Play Time 00:24:47 Cumulative 502.8 hours Start 2024.09.14 @ 11:09:15 End 2024.09.14 @ 11:31:40 Sessions 1 Manual Loads 0 Difficulty Rogue Special Mode None Game No. 231 Rogue 231 Adventurer 0 Explorer 0 Win Type - Total 12 Types 9/0/1/1/0/0/0/1/0 Lore% 71 Gallery% 89 Achievement% 72 Wizard Run 0 Options --------- Layout 2 ASCII 0 Keyboard 1 Movement Vi Keybinds 0 Fullscreen 2 Font 32/SmallcapsGlow Map View 50x44 Zoom Use 0% Tactical HUD 1 Map Filters NONE Filters NONE Steam 0 RUN: 98b86708-77ad-4933-adc9-99c851a42e76